bitfinex-derivatives/quotes_SOLF0:USTF0_20250221
["timestamp","ask_amount","ask_price","bid_price","bid_amount"]
[1740139714540,0.03648586,176.98,176.95,0.04319748]
[1740139715140,0.03648586,176.98,176.96,5.6494]
[1740139716742,0.03648586,176.98,176.97,5.6494]
[1740139717349,0.03648586,176.98,176.96,5.6496]
[1740139717745,0.03648586,176.98,176.95,0.04319748]
[1740139717950,0.03648586,176.98,176.95,5.69299748]
[1740139718247,9.93142331,176.97,176.95,0.04319748]
[1740139718549,9.93142331,176.97,176.9,9.93142331]
[1740139718842,9.93142331,176.99,176.94,9.93142331]
[1740139719642,0.03996417,176.98,176.95,0.04118829]
[1740139720748,9.93142331,176.97,176.95,0.04118829]
[1740139721247,15.58082331,176.97,176.95,0.04118829]
[1740139723651,5.6497,176.96,176.95,0.04118829]
[1740139724248,9.93142331,176.97,176.95,0.04118829]
[1740139724952,15.58092331,176.97,176.95,0.04118829]
[1740139726753,0.03996417,176.98,176.95,5.69108829]
[1740139727256,0.03996417,176.98,176.95,0.04118829]
[1740139727450,0.03996417,176.98,176.97,5.6494]
[1740139729552,0.03996417,176.98,176.96,9.93142331]
[1740139730254,0.03996417,176.98,176.95,0.04118829]
[1740139730455,0.03996417,176.98,176.96,9.93142331]
[1740139731156,0.03996417,176.98,176.97,5.6494]
[1740139733352,0.03996417,176.98,176.96,9.93142331]
[1740139733559,0.03996417,176.98,176.96,15.58102331]
[1740139736254,0.03996417,176.98,176.96,5.6496]
[1740139738662,0.03996417,176.98,176.95,5.69108829]
[1740139738960,5.68916417,176.98,176.95,0.04118829]
[1740139739260,0.03996417,176.98,176.95,0.04118829]
[1740139739462,5.6495,176.97,176.95,0.04118829]
[1740139739865,15.58092331,176.97,176.95,0.04118829]
[1740139740065,5.6497,176.96,176.95,0.04118829]
[1740139740361,9.93142331,176.97,176.95,0.04118829]
[1740139741260,15.58102331,176.97,176.95,0.04118829]
[1740139741858,0.03996417,176.98,176.95,0.04118829]
[1740139742764,5.68926417,176.98,176.95,0.04118829]
[1740139742958,0.03996417,176.98,176.95,0.04118829]
[1740139743567,5.6496,176.97,176.95,0.04118829]
[1740139745560,0.03996417,176.98,176.95,0.04118829]
[1740139749073,0.03996417,176.98,176.97,5.6494]
[1740139750864,9.93142331,177.05,176.99,5.6486]
[1740139751064,9.93142331,177.05,176.99,9.93142331]
[1740139751574,15.57832331,177.05,176.99,9.93142331]
[1740139751968,0.0372352,177.04,177.01,5.6479]
[1740139752176,0.0372352,177.04,177.01,9.93142331]
[1740139752571,0.0372352,177.04,177.02,5.6476]
[1740139753980,0.0372352,177.04,177.0,5.6878493]
[1740139754875,9.93142331,177.03,177.0,0.0395493]
[1740139756079,9.93142331,177.03,177.0,5.6877493]
[1740139756280,9.93142331,177.03,177.0,0.0395493]
[1740139757084,0.0372352,177.04,177.0,0.0395493]
[1740139758281,0.0372352,177.04,177.01,9.93142331]
[1740139759185,0.0372352,177.04,177.03,5.6475]
[1740139760280,0.0372352,177.04,177.01,9.93142331]
[1740139760477,0.0372352,177.04,177.0,0.0395493]
[1740139761588,0.0372352,177.04,177.01,5.6481]
[1740139762392,0.0372352,177.04,177.0,0.0395493]
[1740139762597,9.93142331,177.03,177.0,0.0395493]
[1740139762886,9.93142331,177.01,177.0,0.0395493]
[1740139763387,15.57952331,177.01,177.0,0.0395493]
[1740139764388,15.57952331,177.01,176.94,5.6502]
[1740139764389,5.6489,176.99,176.94,5.6502]
[1740139764585,15.58032331,176.99,176.94,5.6502]
[1740139764785,9.93142331,176.99,176.95,5.65]
[1740139765495,9.96846653,176.99,176.95,5.69303436]
[1740139765694,15.61736653,176.99,176.95,0.04303436]
[1740139765895,9.93142331,176.97,176.95,0.04303436]
[1740139767694,5.6497,176.96,176.95,0.04303436]
[1740139768092,9.93142331,176.97,176.95,0.04303436]
[1740139768400,15.58092331,176.97,176.95,0.04303436]
[1740139769902,9.93142331,176.97,176.95,0.04303436]
[1740139770109,5.6497,176.96,176.95,0.04303436]
[1740139773602,5.6509,176.93,176.89,5.6519]
[1740139773805,9.93142331,176.92,176.89,5.6519]
[1740139774299,9.93142331,176.92,176.85,9.93142331]
[1740139774707,0.04186096,176.9,176.87,0.03714056]
[1740139775205,0.04186096,176.9,176.88,5.652]
[1740139775605,0.04186096,176.9,176.87,9.96856387]
[1740139775805,0.04186096,176.9,176.88,5.6523]
[1740139776207,0.04186096,176.9,176.89,9.93142331]
[1740139776208,6.096e-05,176.9,176.89,9.93142331]
[1740139776403,6.096e-05,176.9,176.89,72.11332331]
[1740139779008,6.096e-05,176.9,176.89,15.58332331]
[1740139779209,6.096e-05,176.9,176.87,9.96856387]
[1740139779814,9.93148427,176.9,176.87,0.03714056]
[1740139781408,5.6521,176.89,176.87,0.03714056]
[1740139782013,9.93142331,176.88,176.74,1.7978]
[1740139782213,9.93142331,176.76,176.73,7.83437977]
[1740139782410,9.93142331,176.77,176.73,7.83437977]
[1740139782603,15.5554982,176.81,176.73,7.83437977]
[1740139782807,7.48,176.83,176.73,7.83437977]
[1740139783204,0.03566417,176.8,176.76,0.04051722]
[1740139786717,5.69056417,176.8,176.76,0.04051722]
[1740139789117,0.03566417,176.8,176.76,0.04051722]
[1740139790417,0.03566417,176.8,176.77,5.6557]
[1740139790916,0.03566417,176.8,176.76,5.69651722]
[1740139791213,0.03566417,176.8,176.76,0.04051722]
[1740139791619,0.03566417,176.8,176.76,3.48241722]
[1740139791818,0.03566417,176.8,176.79,5.6551]
[1740139792221,0.03566417,176.8,176.79,62.2151]
[1740139792415,3.6115,176.88,176.83,5.6536]
[1740139793519,3.6115,176.88,176.84,0.0378573]
[1740139793720,0.04218847,176.87,176.84,0.0378573]
[1740139794619,5.69478847,176.87,176.84,0.0378573]
[1740139795119,5.6532,176.85,176.84,0.0378573]
[1740139796616,5.654,176.83,176.76,3.4419]
[1740139797223,5.6538,176.84,176.78,5.6552]
[1740139797420,17.3371982,176.86,176.78,5.6552]
[1740139797919,0.03566657,176.84,176.8,0.03920719]
[1740139798120,0.03566657,176.84,176.8,5.69390719]
[1740139799027,0.03566657,176.84,176.8,0.03920719]
[1740139800321,5.6539,176.83,176.8,0.03920719]
[1740139800522,0.03566657,176.84,176.8,0.03920719]
[1740139801424,0.03566657,176.84,176.82,5.6541]
[1740139802827,0.03566657,176.84,176.8,0.03920719]
[1740139803027,0.03566657,176.84,176.81,5.6544]
[1740139803422,0.03566657,176.84,176.82,5.6542]
[1740139803823,0.03566657,176.84,176.8,0.03920719]
[1740139804525,0.03566657,176.84,176.82,5.6542]
[1740139804726,0.03566657,176.84,176.8,0.03920719]
[1740139806330,5.6539,176.83,176.8,0.03920719]
[1740139807331,0.03566657,176.84,176.8,0.03920719]
[1740139807530,5.68926657,176.84,176.8,0.03920719]
[1740139808625,0.03566657,176.84,176.8,5.69400719]
[1740139810020,0.03566657,176.84,176.8,0.03920719]
[1740139810326,0.03566657,176.84,176.83,5.6539]
[1740139811728,17.3472982,176.92,176.87,5.6524]
[1740139811932,15.5554982,176.92,176.87,5.6524]
[1740139812632,15.5554982,176.92,176.81,17.3350982]
[1740139812827,0.03861002,176.91,176.88,0.04142776]
[1740139813431,0.03861002,176.91,176.89,5.6517]
[1740139813735,0.03861002,176.91,176.88,0.04142776]
[1740139815226,5.69001002,176.91,176.88,0.04142776]
[1740139815429,0.03861002,176.91,176.88,0.04142776]
[1740139816533,5.69011002,176.91,176.88,0.04142776]
[1740139816832,0.03861002,176.91,176.88,0.04142776]
[1740139817034,0.03861002,176.91,176.9,5.6516]
[1740139818729,0.03861002,176.91,176.89,9.2495]
[1740139818936,0.03861002,176.91,176.88,0.04142776]
[1740139819832,5.68991002,176.91,176.88,0.04142776]
[1740139820233,0.03861002,176.91,176.88,0.04142776]
[1740139821238,0.03861002,176.91,176.88,5.69352776]
[1740139821434,0.03861002,176.91,176.88,0.04142776]
[1740139823737,5.6519,176.89,176.88,0.04142776]
[1740139823938,21.2073982,176.89,176.88,0.04142776]
[1740139828743,5.6533,176.85,176.77,3.5678]
[1740139829040,5.6533,176.85,176.81,5.6542]
[1740139829742,5.69650688,176.85,176.81,5.69533341]
[1740139830039,0.04320688,176.85,176.81,0.04113341]
[1740139830240,5.6535,176.84,176.81,0.04113341]
[1740139830442,0.04320688,176.85,176.81,5.69553341]
[1740139830741,5.69660688,176.85,176.81,0.04113341]
[1740139830943,0.04320688,176.85,176.81,0.04113341]
[1740139831242,5.69660688,176.85,176.81,0.04113341]
[1740139832045,0.04320688,176.85,176.81,0.04113341]
[1740139832743,0.04320688,176.85,176.81,5.69563341]
[1740139832951,5.69650688,176.85,176.81,0.04113341]
[1740139833247,0.04320688,176.85,176.81,0.04113341]
[1740139833450,5.6539,176.83,176.81,0.04113341]
[1740139833642,0.04320688,176.85,176.81,0.04113341]
[1740139834043,5.6541,176.83,176.81,0.04113341]
[1740139834243,0.04320688,176.85,176.81,0.04113341]
[1740139834643,5.6542,176.82,176.81,0.04113341]
[1740139835750,15.5554982,176.83,176.73,1.7118]
[1740139836049,5.6556,176.78,176.74,5.6567]
[1740139836247,15.5554982,176.8,176.73,1.7118]
[1740139836646,15.5554982,176.8,176.75,5.6564]
[1740139836948,0.04266719,176.79,176.76,0.02522563]
[1740139837839,5.6558,176.77,176.76,0.02522563]
[1740139838347,21.2112982,176.77,176.76,0.02522563]
[1740139839450,72.1254982,176.77,176.7,5.658]
[1740139839747,15.5554982,176.77,176.7,5.658]
[1740139839944,15.5554982,176.77,176.65,1.7528]
[1740139840445,15.5554982,176.77,176.69,5.6581]
[1740139840751,0.03673789,176.73,176.65,1.7528]
[1740139842248,0.03673789,176.73,176.65,7.4121]
[1740139842552,0.03673789,176.73,176.65,1.7528]
[1740139842949,0.03673789,176.73,176.67,5.6587]
[1740139844150,0.03673789,176.73,176.65,1.7528]
[1740139844557,0.03673789,176.73,176.66,15.5554982]
[1740139845562,0.03673789,176.73,176.65,1.7528]
[1740139847156,0.03673789,176.73,176.68,5.6584]
[1740139850059,0.03673789,176.73,176.69,5.6581]
[1740139850260,0.03673789,176.73,176.65,1.7528]
[1740139850557,0.03673789,176.73,176.68,9.95985727]
[1740139850855,0.03673789,176.73,176.7,9.95985727]
[1740139851062,395.73379231,176.94,176.72,9.95985727]
[1740139851254,9.95985727,176.84,176.77,9.95985727]
[1740139851649,9.95985727,176.84,176.8,5.6546]
[1740139851855,9.95985727,176.84,176.77,9.95985727]
[1740139852356,0.03739572,176.82,176.79,0.03673789]
[1740139853361,0.03739572,176.82,176.8,5.6546]
[1740139854859,0.03739572,176.82,176.79,0.03673789]
[1740139855061,0.03739572,176.82,176.81,5.6545]
[1740139855257,15.54617328,176.89,176.79,0.03673789]
[1740139855562,15.54617328,176.89,176.83,5.6536]
[1740139856257,15.54617328,176.89,176.84,5.6533]
[1740139856462,0.037751,176.88,176.84,5.6964992]
[1740139857367,0.037751,176.88,176.84,0.0431992]
[1740139859065,5.6528,176.87,176.84,0.0431992]
[1740139859666,5.6529,176.86,176.84,0.0431992]
[1740139859961,15.54617328,176.86,176.84,0.0431992]
[1740139860356,5.6532,176.85,176.84,0.0431992]
[1740139860562,15.54617328,176.86,176.84,0.0431992]
[1740139860761,21.19927328,176.86,176.84,0.0431992]
[1740139861466,5.6532,176.85,176.84,0.0431992]
[1740139861963,15.54617328,176.86,176.84,0.0431992]
[1740139864267,5.6532,176.85,176.84,0.0431992]
[1740139866272,15.54617328,176.86,176.75,15.54617328]
[1740139866470,5.654,176.83,176.79,5.655]
[1740139867464,5.69019913,176.83,176.79,5.68593441]
[1740139868269,5.69019913,176.83,176.79,0.03093441]
[1740139870066,5.6543,176.82,176.79,0.03093441]
[1740139871173,0.03619913,176.83,176.79,0.03093441]
[1740139871369,5.69029913,176.83,176.79,0.03093441]
[1740139873773,5.6542,176.82,176.79,0.03093441]
[1740139874276,5.69019913,176.83,176.79,0.03093441]
[1740139874477,0.03619913,176.83,176.81,5.6545]
[1740139874974,9.94730306,176.87,176.81,9.94730306]
[1740139876272,0.03986124,176.86,176.83,9.94730306]
[1740139876574,0.03986124,176.86,176.85,5.6532]
[1740139877476,5.6505,176.94,176.87,5.6525]
[1740139877769,15.53674145,176.97,176.83,17.21304145]
[1740139877977,15.53674145,176.97,176.86,15.53674145]
[1740139878271,15.53674145,176.97,176.87,1.7852]
[1740139878675,0.03755324,176.94,176.9,0.03845761]
[1740139880674,0.03755324,176.94,176.91,5.6511]
[1740139881275,15.57429469,176.94,176.9,0.03845761]
[1740139882076,21.22469469,176.94,176.9,0.03845761]
[1740139883673,15.57429469,176.94,176.9,0.03845761]
[1740139884477,21.22469469,176.94,176.9,0.03845761]
[1740139884677,15.57429469,176.94,176.9,0.03845761]
[1740139884975,0.03755324,176.94,176.9,0.03845761]
[1740139885173,15.53674145,177.04,176.91,15.53674145]
[1740139885382,15.53674145,177.04,176.92,1.8005]
[1740139885976,15.53674145,177.04,176.98,5.649]
[1740139886172,15.53674145,177.04,176.99,0.04275658]
[1740139886375,0.03614659,177.03,176.99,0.04275658]
[1740139888082,5.68364659,177.03,176.99,0.04275658]
[1740139890582,0.03614659,177.03,176.99,0.04275658]
[1740139891386,5.648,177.02,176.99,0.04275658]
[1740139891984,5.6479,177.02,176.99,0.04275658]
[1740139892383,0.03614659,177.03,176.99,0.04275658]
[1740139892779,5.6482,177.01,176.99,0.04275658]
[1740139895691,5.648,177.02,176.99,0.04275658]
[1740139896486,5.6481,177.01,176.99,0.04275658]
[1740139897991,0.03614659,177.03,176.99,0.04275658]
[1740139898790,5.648,177.02,176.99,0.04275658]
[1740139898986,0.03614659,177.03,176.99,0.04275658]
[1740139899590,0.03614659,177.03,177.0,5.6481]
[1740139899788,0.03614659,177.03,176.99,0.04275658]
[1740139901794,0.03614659,177.03,177.01,5.6479]
[1740139902691,0.03614659,177.03,176.99,0.04275658]
[1740139906100,5.648,177.02,176.99,0.04275658]
[1740139906301,0.03614659,177.03,176.99,0.04275658]
[1740139906999,0.03614659,177.03,176.99,5.69145658]
[1740139907905,15.53674145,177.02,176.99,5.658e-05]
[1740139908100,1.7474,177.01,176.83,1.6854]
[1740139908298,15.53674145,176.93,176.83,1.6854]
[1740139908494,5.651,176.92,176.83,1.6854]
[1740139908698,15.53674145,176.93,176.83,1.6854]
[1740139908897,5.6515,176.91,176.84,5.6535]
[1740139909105,0.03917264,176.89,176.86,0.03636231]
[1740139909903,0.03917264,176.89,176.87,5.6525]
[1740139910099,0.03917264,176.89,176.86,0.03636231]
[1740139910301,0.03917264,176.89,176.87,56.54]
[1740139910497,0.03917264,176.89,176.86,0.03636231]
[1740139912406,5.69107264,176.89,176.86,0.03636231]
[1740139913806,5.6524,176.88,176.86,0.03636231]
[1740139915708,0.03917264,176.89,176.86,0.03636231]
[1740139915913,5.6526,176.87,176.86,0.03636231]
[1740139916312,21.18934145,176.87,176.86,0.03636231]
[1740139916807,72.07674145,176.87,176.77,1.7656]
[1740139917005,15.53674145,176.84,176.77,1.7656]
[1740139917714,15.53674145,176.84,176.78,5.6554]
[1740139917903,0.04182932,176.82,176.79,0.04060122]
[1740139921114,0.04182932,176.82,176.79,5.69550122]
[1740139921315,0.04182932,176.82,176.79,0.04060122]
[1740139921814,0.04182932,176.82,176.8,5.6546]
[1740139922017,0.04182932,176.82,176.79,0.04060122]
[1740139922410,0.04182932,176.82,176.8,5.6548]
[1740139924222,0.04182932,176.82,176.79,0.04060122]
[1740139924918,0.04182932,176.82,176.8,5.6548]
[1740139925119,0.04182932,176.82,176.79,0.04060122]
[1740139925523,0.04182932,176.82,176.8,5.6546]
[1740139928221,0.04182932,176.82,176.79,0.04060122]
[1740139928433,0.04182932,176.82,176.79,5.69560122]
[1740139929226,0.04182932,176.82,176.79,0.04060122]
[1740139929924,0.04182932,176.82,176.81,5.6545]
[1740139931128,0.04182932,176.82,176.79,5.69560122]
[1740139932025,0.04182932,176.82,176.79,0.04060122]
[1740139932434,0.04182932,176.82,176.79,5.69550122]
[1740139933026,0.04182932,176.82,176.8,5.6547]
[1740139933531,0.04182932,176.82,176.79,0.04060122]
[1740139933727,0.04182932,176.82,176.79,5.69560122]
[1740139937135,0.04182932,176.82,176.79,0.04060122]
[1740139937836,0.04182932,176.82,176.81,5.6545]
[1740139939039,0.04182932,176.82,176.8,15.60125073]
[1740139940340,0.04182932,176.82,176.8,9.94655073]
[1740139940539,0.04182932,176.82,176.81,5.6545]
[1740139940736,0.04182932,176.82,176.8,9.94655073]
[1740139940940,0.04182932,176.82,176.8,15.60135073]
[1740139941435,0.04182932,176.82,176.8,9.94655073]
[1740139941740,0.04182932,176.82,176.79,0.04060122]
[1740139941741,0.04182932,176.82,176.79,5.69550122]
[1740139942740,0.04182932,176.82,176.79,0.04060122]
[1740139942940,0.04182932,176.82,176.8,5.6548]
[1740139944140,0.04182932,176.82,176.79,0.04060122]
[1740139944343,0.04182932,176.82,176.79,5.69550122]
[1740139948243,0.04182932,176.82,176.79,0.04060122]
[1740139948842,0.04182932,176.82,176.79,5.69540122]
[1740139949047,0.04182932,176.82,176.79,0.04060122]
[1740139949442,0.04182932,176.82,176.8,5.6548]
[1740139951445,0.04182932,176.82,176.79,5.69550122]
[1740139952946,0.04182932,176.82,176.79,0.04060122]
[1740139955246,0.04182932,176.82,176.79,5.69570122]
[1740139955541,0.04182932,176.82,176.79,0.04060122]
[1740139957149,9.98838005,176.82,176.79,0.04060122]
[1740139959848,9.94655073,176.8,176.79,0.04060122]
[1740139960846,9.98838005,176.82,176.79,0.04060122]
[1740139962050,9.98838005,176.82,176.79,5.69570122]
[1740139968660,9.98838005,176.82,176.79,0.04060122]
[1740139969455,9.98838005,176.82,176.79,5.69570122]
[1740139969857,9.98838005,176.82,176.79,0.04060122]
[1740139971768,15.64258005,176.82,176.79,0.04060122]
[1740139973056,9.98838005,176.82,176.79,0.04060122]
[1740139973262,5.6548,176.8,176.79,0.04060122]
[1740139975158,15.60135073,176.8,176.79,0.04060122]
[1740139975364,5.6557,176.78,176.72,15.60375073]
[1740139975660,15.60225073,176.78,176.72,15.60375073]
[1740139976164,15.60225073,176.78,176.72,9.94655073]
[1740139976366,0.04085347,176.77,176.73,5.68182791]
[1740139977466,0.04085347,176.77,176.74,5.6566]
[1740139978263,0.04085347,176.77,176.76,5.6561]
[1740139980667,9.94655073,176.82,176.79,5.6548]
[1740139981372,9.94655073,176.82,176.78,5.6554]
[1740139981763,9.98731329,176.82,176.78,5.69495029]
[1740139982273,9.98731329,176.82,176.79,5.6551]
[1740139982871,9.98731329,176.82,176.78,5.69485029]
[1740139983461,9.98731329,176.82,176.78,0.03955029]
[1740139984067,15.64171329,176.82,176.78,0.03955029]
[1740139984268,9.98731329,176.82,176.78,0.03955029]
[1740139985561,9.98731329,176.82,176.79,5.6549]
[1740139985769,0.04076256,176.82,176.8,9.94655073]
[1740139985970,5.6517,176.9,176.8,9.94655073]
[1740139986166,15.59825073,176.9,176.84,9.94655073]
[1740139986565,15.59825073,176.9,176.84,15.59975073]
[1740139986772,9.94655073,176.9,176.84,9.94655073]
[1740139986971,9.94655073,176.87,176.72,11.3146]
[1740139987172,9.94655073,176.8,176.76,5.6559]
[1740139987368,9.94655073,176.8,176.78,0.04244461]
[1740139987675,9.98753797,176.8,176.78,0.04244461]
[1740139990171,0.04098724,176.8,176.78,0.04244461]
[1740139992076,0.04098724,176.8,176.79,5.6551]
[1740139992471,0.04098724,176.8,176.79,62.2151]
[1740139993977,0.04098724,176.8,176.79,5.6551]
[1740139994584,9.94655073,176.88,176.83,5.6537]
[1740139994884,9.94655073,176.88,176.83,9.94655073]
[1740139995082,3.4093,176.9,176.8,9.94655073]
[1740139995083,5.6535,176.85,176.8,9.94655073]
[1740139995379,9.94655073,176.86,176.8,9.94655073]
[1740139995877,0.03911205,176.85,176.81,0.04324932]
[1740139996680,0.03911205,176.85,176.82,5.6542]
[1740139996878,0.03911205,176.85,176.82,9.94655073]
[1740139997079,0.03911205,176.85,176.84,9.94655073]
[1740139997384,0.03911205,176.85,176.84,15.60005073]
[1740139999283,0.03911205,176.85,176.84,72.15005073]
[1740139999482,9.94655073,176.93,176.88,5.652]
[1740139999788,9.94655073,176.93,176.88,15.59855073]
[1740140000582,0.03954874,176.92,176.89,5.6902083]
[1740140000787,0.03954874,176.92,176.89,0.0383083]
[1740140000981,0.03954874,176.92,176.9,9.94655073]
[1740140001886,0.03954874,176.92,176.91,5.6513]
[1740140002287,15.27825073,177.0,176.91,56.52]
[1740140002481,15.27825073,177.0,176.94,9.94655073]
[1740140003488,0.0430658,176.99,176.95,0.03792932]
[1740140004790,9.94655073,176.98,176.95,0.03792932]
[1740140004988,0.0430658,176.99,176.9,5.6516]
[1740140004989,15.59625073,176.96,176.9,5.6516]
[1740140005189,15.59625073,176.96,176.89,9.94655073]
[1740140006080,9.94655073,176.96,176.9,5.6514]
[1740140006285,0.04221491,176.94,176.91,0.03978285]
[1740140006688,0.04221491,176.94,176.91,9.98633358]
[1740140006889,0.04221491,176.94,176.93,9.94655073]
[1740140007287,0.04221491,176.94,176.93,15.59725073]
[1740140009787,0.04221491,176.94,176.93,9.94655073]
[1740140010090,0.04221491,176.94,176.91,9.98633358]
[1740140011089,0.04221491,176.94,176.91,0.03978285]
[1740140011389,5.69261491,176.94,176.91,0.03978285]
[1740140011695,9.98876564,176.94,176.91,0.03978285]
[1740140019397,15.63916564,176.94,176.91,0.03978285]
[1740140020397,9.98876564,176.94,176.91,0.03978285]
[1740140022299,5.651,176.93,176.91,0.03978285]
[1740140022796,15.59755073,176.92,176.91,0.03978285]
[1740140022997,11.80055073,176.92,176.84,9.94655073]
[1740140023199,9.94655073,176.9,176.84,9.94655073]
[1740140023594,9.94655073,176.9,176.86,5.6528]
[1740140024203,9.94655073,176.88,176.86,0.04082539]
[1740140024497,9.94655073,176.88,176.8,9.94655073]
[1740140024694,9.94655073,176.86,176.8,9.94655073]
[1740140025209,9.94655073,176.86,176.78,9.94655073]
[1740140025706,0.03780966,176.84,176.8,0.03569639]
[1740140026610,9.98436039,176.84,176.8,0.03569639]
[1740140027301,9.94655073,176.82,176.8,0.03569639]
[1740140030902,15.63796039,176.84,176.8,0.03569639]
[1740140031509,9.98436039,176.84,176.8,0.03569639]
[1740140035912,15.63796039,176.84,176.8,0.03569639]
[1740140036110,9.98436039,176.84,176.8,0.03569639]
[1740140036509,9.98436039,176.84,176.81,5.6543]
[1740140037011,0.03780966,176.84,176.81,9.94655073]
[1740140037212,0.03780966,176.84,176.83,5.6539]
[1740140038714,0.03780966,176.84,176.83,15.60045073]
[1740140039410,11.68235073,176.93,176.86,5.6529]
[1740140039617,11.68235073,176.93,176.87,9.94655073]
[1740140039814,5.651,176.92,176.87,9.94655073]
[1740140040313,17.33305073,176.93,176.87,9.94655073]
[1740140040516,0.03976118,176.91,176.88,0.04164242]
[1740140041906,0.03976118,176.91,176.89,9.94655073]
[1740140043520,0.03976118,176.91,176.89,15.59835073]
[1740140044621,0.03976118,176.91,176.9,5.6516]
[1740140045516,9.94655073,176.99,176.93,5.6505]
[1740140045716,9.94655073,176.99,176.93,9.94655073]
[1740140046120,1.7789,177.0,176.93,9.94655073]
[1740140046617,0.04324719,176.98,176.95,15.63449896]
[1740140047518,0.04324719,176.98,176.96,5.6495]
[1740140047719,0.04324719,176.98,176.95,9.98479896]
[1740140048112,0.04324719,176.98,176.95,0.03824823]
[1740140050121,0.04324719,176.98,176.96,9.94655073]
[1740140051023,0.04324719,176.98,176.97,5.6494]
[1740140051814,15.59345073,177.05,176.99,5.6487]
[1740140052019,15.59345073,177.05,176.99,9.94655073]
[1740140052925,0.03726989,177.04,177.0,0.04260823]
[1740140053316,0.03726989,177.04,177.0,5.69080823]
[1740140053524,0.03726989,177.04,177.0,0.04260823]
[1740140054825,0.03726989,177.04,177.0,5.69080823]
[1740140055226,0.03726989,177.04,177.03,5.6475]
[1740140056934,5.6451,177.11,177.04,5.6469]
[1740140057230,15.50713284,177.12,177.03,15.50713284]
[1740140057628,5.3855,177.13,177.05,5.6466]
[1740140057836,5.3855,177.13,177.03,15.50713284]
[1740140058033,0.03599022,177.11,177.07,0.03557867]
[1740140058635,5.68099022,177.11,177.07,0.03557867]
[1740140058836,0.03599022,177.11,177.07,0.03557867]
[1740140059838,0.03599022,177.11,177.07,5.68167867]
[1740140060037,0.03599022,177.11,177.07,0.03557867]
[1740140061447,0.03599022,177.11,177.08,5.6459]
[1740140061947,0.03599022,177.11,177.07,0.03557867]
[1740140062646,0.03599022,177.11,177.07,5.68177867]
[1740140062845,0.03599022,177.11,177.07,0.03557867]
[1740140064546,0.03599022,177.11,177.08,5.6456]
[1740140064845,0.03599022,177.11,177.07,0.03557867]
[1740140065747,0.03599022,177.11,177.09,5.6454]
[1740140065943,0.03599022,177.11,177.07,0.03557867]
[1740140066741,5.68089022,177.11,177.07,0.03557867]
[1740140068441,0.03599022,177.11,177.07,0.03557867]
[1740140069138,0.03599022,177.11,177.09,5.6453]
[1740140070041,0.03599022,177.11,177.07,0.03557867]
[1740140070346,0.03599022,177.11,177.09,5.6452]
[1740140070548,0.03599022,177.11,177.07,0.03557867]
[1740140071447,0.03599022,177.11,177.1,5.6452]
[1740140072647,21.16613284,177.3,177.16,5.6433]
[1740140072840,15.50713284,177.24,177.12,15.50713284]
[1740140073038,5.6423,177.2,177.12,15.50713284]
[1740140073243,15.50713284,177.24,177.12,15.50713284]
[1740140073448,5.6427,177.19,177.12,15.50713284]
[1740140073849,0.03986544,177.17,177.14,0.04068593]
[1740140075450,5.68316544,177.17,177.14,0.04068593]
[1740140075948,0.03986544,177.17,177.14,0.04068593]
[1740140076147,21.15073284,177.15,177.14,0.04068593]
[1740140076349,1.726,177.16,177.06,18.97853284]
[1740140076540,11.6396918,177.16,177.1,9.9136918]
[1740140076850,1.726,177.16,177.12,9.9136918]
[1740140077054,9.9136918,177.19,177.12,9.9136918]
[1740140077350,0.03602422,177.17,177.14,0.03932063]
[1740140079142,5.67932422,177.17,177.14,0.03932063]
[1740140081455,5.6434,177.16,177.14,0.03932063]
[1740140082153,5.67912422,177.17,177.14,0.03932063]
[1740140082652,0.03602422,177.17,177.14,0.03932063]
[1740140082952,5.6434,177.16,177.14,0.03932063]
[1740140083154,0.03602422,177.17,177.14,0.03932063]
[1740140083551,5.67922422,177.17,177.14,0.03932063]
[1740140086457,0.03602422,177.17,177.14,0.03932063]
[1740140086650,0.03602422,177.17,177.15,5.6434]
[1740140086850,0.03602422,177.17,177.14,0.03932063]
[1740140087050,5.67912422,177.17,177.14,0.03932063]
[1740140087248,0.03602422,177.17,177.14,0.03932063]
[1740140090355,0.03602422,177.17,177.15,5.6435]
[1740140090558,0.03602422,177.17,177.14,9.95301243]
[1740140091550,0.03602422,177.17,177.14,15.59681243]
[1740140092159,0.03602422,177.17,177.14,9.95301243]
[1740140092361,0.03602422,177.17,177.14,0.03932063]
[1740140097560,5.67902422,177.17,177.14,0.03932063]
[1740140098662,0.03602422,177.17,177.14,0.03932063]
[1740140107061,0.03602422,177.17,177.14,9.95301243]
[1740140107367,0.03602422,177.17,177.15,5.6434]
[1740140109865,0.03602422,177.17,177.14,9.95301243]
[1740140110062,1.7036,177.24,177.16,9.9136918]
[1740140110264,11.6000918,177.25,177.18,9.9136918]
[1740140110562,11.6000918,177.25,177.2,9.9136918]
[1740140111067,11.6000918,177.25,177.2,15.5556918]
[1740140111270,0.04007853,177.24,177.21,0.04094309]